bitfinex/quotes_ETHUSD_20250424
["timestamp","ask_amount","ask_price","bid_price","bid_amount"]
[1745512886884,9.46151932,1772.2,1771.8,6.45095167]
[1745512887088,0.8186,1772.4,1772.2,5.64247335]
[1745512887383,3.1954671,1772.7,1772.2,5.64247335]
[1745512887384,6.4602317,1772.6,1772.2,5.64247335]
[1745512887592,6.4602317,1772.6,1772.3,0.5237412]
[1745512887761,7.20652735,1772.6,1772.3,0.5237412]
[1745512887962,6.46066725,1772.4,1772.3,0.5237412]
[1745512888186,6.46086641,1772.4,1772.0,5.64331517]
[1745512888351,0.8186,1772.4,1772.0,5.64331517]
[1745512888679,6.46089977,1772.4,1772.1,6.16651627]
[1745512888887,0.8186,1772.4,1772.1,6.16651627]
[1745512889086,0.8186,1772.4,1772.2,0.52361008]
[1745512889386,6.46069714,1772.4,1772.0,6.40942695]
[1745512889690,12.10305378,1772.4,1772.1,0.52364263]
[1745512889887,5.6424181,1772.3,1772.1,0.52364263]
[1745512890591,11.0714188,1772.4,1772.0,6.4093338]
[1745512890890,9.46084094,1772.4,1772.0,6.4093338]
[1745512891189,15.10319735,1772.4,1772.1,0.52365919]
[1745512891382,9.46084094,1772.4,1772.1,0.52365919]
[1745512891861,5.6423856,1772.3,1772.2,0.52365919]
[1745512892373,9.46084094,1772.4,1772.0,6.40944686]
[1745512892687,9.46084094,1772.4,1772.0,7.05039155]
[1745512892884,5.642492,1772.3,1772.0,6.40944686]
[1745512893050,3.0,1772.2,1772.1,0.52350925]
[1745512893250,10.47522881,1772.2,1772.1,0.52350925]
[1745512893854,9.47250398,1772.2,1771.9,5.64360172]
[1745512894055,9.47250398,1772.2,1771.8,6.45880737]
[1745512894268,5.64305474,1772.1,1771.9,0.52366168]
[1745512894968,5.64305474,1772.1,1771.8,6.45880737]
[1745512896096,11.2863514,1772.1,1771.9,0.52357094]
[1745512896254,5.64334085,1772.0,1771.7,5.64415053]
[1745512896456,5.64334085,1772.0,1771.8,0.52354073]
[1745512896655,5.64305474,1772.1,1771.8,0.52354073]
[1745512896990,5.64305474,1772.1,1771.9,0.52354073]
[1745512897793,5.64305474,1772.1,1771.7,11.28822279]
[1745512897990,5.64305474,1772.1,1771.7,5.64407226]
[1745512898294,5.64305474,1772.1,1771.8,0.52343426]
[1745512898489,0.8298,1772.2,1771.8,6.16710238]
[1745512898689,5.64305552,1772.1,1771.8,0.52343426]
[1745512898896,5.64305552,1772.1,1771.9,0.52343426]
[1745512899798,5.64305552,1772.1,1771.7,5.64406831]
[1745512899961,5.64335227,1772.0,1771.7,5.64406831]
[1745512900166,5.64305552,1772.1,1771.8,0.52336143]
[1745512900494,11.286371,1772.1,1771.8,0.52336143]
[1745512900698,5.64305552,1772.1,1771.9,0.52336143]
[1745512901068,11.28633937,1772.1,1771.8,0.52336143]
[1745512901385,5.64305552,1772.1,1771.8,0.52336143]
[1745512901564,5.64305552,1772.1,1771.9,0.52336143]
[1745512901765,5.64305552,1772.1,1771.8,0.52336143]
[1745512902198,5.64305552,1772.1,1771.9,0.52336143]
[1745512902894,6.47268458,1772.2,1771.9,0.52336143]
[1745512903098,12.11564839,1772.2,1771.8,6.1672644]
[1745512903395,5.64310018,1772.1,1771.9,0.52336143]
[1745512903899,5.64310018,1772.1,1771.8,0.52336143]
[1745512904396,5.64310018,1772.1,1771.8,6.16727618]
[1745512904899,5.64310018,1772.1,1771.9,0.52336143]
[1745512905395,6.47268458,1772.2,1772.0,0.52336143]
[1745512905568,5.64288458,1772.2,1772.0,0.52336143]
[1745512905768,5.6430224,1772.1,1772.0,0.52336143]
[1745512906896,6.28644304,1772.2,1772.0,0.52336143]
[1745512907571,6.28644304,1772.2,1771.8,12.12766302]
[1745512907773,5.64288458,1772.2,1771.8,6.42745269]
[1745512908188,5.64288458,1772.2,1771.9,0.52392745]
[1745512908389,5.64304302,1772.1,1771.9,0.52392745]
[1745512908582,8.64292827,1772.2,1772.0,0.52392745]
[1745512909095,5.6430224,1772.1,1772.0,0.52392745]
[1745512909302,5.6430224,1772.1,1771.8,6.42745269]
[1745512909896,5.6430224,1772.1,1771.9,0.52421001]
[1745512910095,5.64228721,1772.4,1772.0,6.4197939]
[1745512910326,8.64250947,1772.3,1772.0,6.94400391]
[1745512910507,5.64228721,1772.4,1772.1,0.52421001]
[1745512910668,5.64252425,1772.3,1772.1,0.52421001]
[1745512910868,5.64252425,1772.3,1772.2,0.52421001]
[1745512911294,6.77099507,1772.3,1772.2,0.52421001]
[1745512911607,7.54709507,1772.3,1772.2,0.52421001]
[1745512912103,5.64338756,1772.0,1771.8,0.8117]
[1745512912309,11.28628012,1772.1,1771.8,0.8117]
[1745512912666,11.28628012,1772.1,1771.9,0.52435938]
[1745512913109,5.64334085,1772.0,1771.9,0.52435938]
[1745512913269,5.64292478,1772.2,1771.8,6.45552548]
[1745512913469,5.64323866,1772.1,1771.8,0.8117]
[1745512913769,5.64323866,1772.1,1771.9,0.52437629]
[1745512914319,5.64323866,1772.1,1772.0,0.52437629]
[1745512915111,8.64323866,1772.1,1772.0,0.52437629]
[1745512915704,8.96000982,1772.1,1772.0,0.52437629]
[1745512917382,3.31677116,1772.1,1772.0,0.52437629]
[1745512917586,0.31677116,1772.1,1772.0,0.52437629]
[1745512917880,8.64287395,1772.2,1772.0,0.52437629]
[1745512918287,8.64287395,1772.2,1772.1,0.52437629]
[1745512919893,10.14902679,1772.2,1772.1,0.52437629]
[1745512920903,10.46591427,1772.2,1772.1,0.52437629]
[1745512921787,8.95976143,1772.2,1772.1,0.52437629]
[1745512921987,0.31688748,1772.2,1772.1,1.32557629]
[1745512922806,3.0,1772.3,1772.1,6.96859869]
[1745512923007,3.0,1772.3,1772.1,1.32557629]
[1745512923211,8.64239171,1772.3,1772.1,1.32557629]
[1745512923410,3.0,1772.3,1772.2,0.52437629]
[1745512923605,8.6423856,1772.3,1772.2,0.52437629]
[1745512924333,3.0,1772.3,1772.2,0.52437629]
[1745512924831,6.45974079,1772.5,1772.2,0.52437629]
[1745512924993,3.0,1772.4,1772.2,0.52437629]
[1745512925194,5.64184079,1772.5,1772.3,0.52437629]
[1745512925395,8.95855462,1772.5,1772.4,0.52437629]
[1745512925802,5.95855462,1772.5,1772.4,0.52437629]
[1745512926049,0.31671383,1772.5,1772.4,1.29237629]
[1745512926192,5.64144422,1772.6,1772.4,2.55005575]
[1745512926397,5.64144422,1772.6,1772.4,1.29237629]
[1745512926596,5.64144422,1772.6,1772.5,0.52437629]
[1745512926899,5.64125453,1772.7,1772.5,0.52437629]
[1745512927596,11.28261016,1772.7,1772.5,0.52437629]
[1745512927839,5.64125453,1772.7,1772.4,0.768]
[1745512928130,5.6414388,1772.6,1772.4,1.40902137]
[1745512928630,5.6414388,1772.6,1772.5,0.52273863]
[1745512928804,5.64125453,1772.7,1772.5,0.52273863]
[1745512928995,14.28206341,1772.8,1772.5,0.52273863]
[1745512929200,8.64098813,1772.8,1772.5,0.52273863]
[1745512929435,8.64098813,1772.8,1772.6,0.52273863]
[1745512929597,5.64112155,1772.7,1772.6,0.52273863]
[1745512930431,5.64112155,1772.7,1772.4,0.768]
[1745512930619,5.64112155,1772.7,1772.4,6.41005624]
[1745512930926,5.64112155,1772.7,1772.5,0.52235204]
[1745512931334,5.64112155,1772.7,1772.4,6.41005624]
[1745512931531,3.0,1772.8,1772.4,1.9732216]
[1745512931734,5.64206725,1772.4,1772.0,0.7865]
[1745512931898,3.0,1772.2,1771.8,11.39735486]
[1745512932103,8.64281491,1772.2,1771.9,0.5225924]
[1745512932498,5.64323896,1772.1,1771.8,7.45764574]
[1745512932997,5.64323896,1772.1,1771.8,13.10158084]
[1745512933197,8.64285971,1772.2,1771.8,13.10158084]
[1745512933397,8.64285971,1772.2,1771.9,0.52262654]
[1745512933597,5.642391,1772.3,1772.0,5.64323691]
[1745512933838,5.64270398,1772.2,1772.1,0.52262654]
[1745512934148,5.642391,1772.3,1772.1,0.52262654]
[1745512934511,5.642391,1772.3,1771.9,7.57027584]
[1745512934899,5.64221497,1772.4,1772.1,0.7741]
[1745512935405,3.0,1772.5,1772.2,5.64247718]
[1745512935718,8.64194634,1772.5,1772.3,0.52272935]
[1745512936334,8.64194634,1772.5,1772.1,6.41693069]
[1745512936541,3.0,1772.5,1772.2,5.64257376]
[1745512936757,8.64184559,1772.5,1772.2,6.84852421]
[1745512937452,3.0,1772.5,1772.3,0.52281335]
[1745512937641,3.0,1772.5,1772.4,0.52281335]
[1745512938021,6.44564972,1772.7,1772.3,0.8024]
[1745512938243,5.64124972,1772.7,1772.3,6.44446821]
[1745512938555,5.6417979,1772.5,1772.3,2.01109759]
[1745512938728,5.64155275,1772.6,1772.3,2.01109759]
[1745512938931,5.95733417,1772.7,1772.3,7.65346085]
[1745512939156,11.59874405,1772.7,1772.4,0.52266477]
[1745512939522,5.64156004,1772.6,1772.4,0.52266477]
[1745512939724,5.64156004,1772.6,1772.3,7.65340181]
[1745512941151,5.64156004,1772.6,1772.4,0.52267255]
[1745512941554,5.64156004,1772.6,1772.3,7.65340181]
[1745512941555,5.64123219,1772.7,1772.3,13.29558008]
[1745512941752,5.64096073,1772.8,1772.5,5.64164517]
[1745512941914,5.64096073,1772.8,1772.4,6.97134642]
[1745512942115,5.64096073,1772.8,1772.5,0.52249769]
[1745512942575,11.28198504,1772.8,1772.5,0.52249769]
[1745512942854,11.28201041,1772.8,1772.4,6.97134642]
[1745512943039,5.64096073,1772.8,1772.5,6.33881017]
[1745512943238,5.6409669,1772.8,1772.5,0.69713464]
[1745512943622,5.6409669,1772.8,1772.6,0.52254764]
[1745512943854,11.2820275,1772.8,1772.6,0.52254764]
[1745512944237,5.64111242,1772.7,1772.4,6.97134642]
[1745512944460,5.64111242,1772.7,1772.5,0.69713464]
[1745512944665,5.64111242,1772.7,1772.5,0.52260729]
[1745512945044,5.64111242,1772.7,1772.4,6.97134642]
[1745512945368,6.40891242,1772.7,1772.4,6.97134642]
[1745512945752,6.64369173,1772.8,1772.4,6.97134642]
[1745512945957,5.6409669,1772.8,1772.5,6.39866098]
[1745512946155,5.6409669,1772.8,1772.6,0.52266399]
[1745512946761,11.28199399,1772.8,1772.5,0.757]
[1745512947073,11.28199243,1772.8,1772.5,0.757]
[1745512947371,5.6409669,1772.8,1772.5,0.757]
[1745512947571,5.64114564,1772.7,1772.5,0.757]
[1745512948168,5.64114564,1772.7,1772.6,0.52295611]
[1745512948559,5.6409669,1772.8,1772.4,7.76964642]
[1745512948970,11.28203159,1772.8,1772.4,7.76964642]
[1745512949275,5.6411397,1772.7,1772.5,0.5230422]
[1745512949573,5.6411397,1772.7,1772.6,0.5230422]
[1745512950371,5.6411397,1772.7,1772.5,0.5230422]
[1745512950773,5.6411397,1772.7,1772.6,0.5230422]
[1745512951173,5.6411397,1772.7,1772.5,0.5230422]
[1745512951371,11.28203159,1772.8,1772.5,0.5230422]
[1745512951776,11.28203159,1772.8,1772.6,0.5230422]
[1745512951974,5.6409669,1772.8,1772.6,0.5230422]
[1745512952375,5.6409669,1772.8,1772.4,13.4114985]
[1745512952580,5.6409669,1772.8,1772.5,1.34114985]
[1745512952743,5.6409669,1772.8,1772.4,12.08194049]
[1745512953073,10.41118086,1772.9,1772.5,5.64143846]
[1745512953278,5.64087176,1772.8,1772.5,6.16468704]
[1745512953579,5.64114706,1772.7,1772.5,0.52324858]
[1745512953755,5.64087176,1772.8,1772.5,6.16497655]
[1745512953951,10.41113756,1772.9,1772.6,6.16453215]
[1745512954152,3.0,1773.0,1772.7,6.46399903]
[1745512954470,0.7579,1773.3,1772.8,1.00272483]
[1745512954669,5.63898791,1773.4,1773.0,12.10286753]
[1745512954870,1.00272483,1773.4,1773.0,0.823]
[1745512955189,1.00272483,1773.4,1773.1,6.16288893]
[1745512955190,0.31612807,1773.4,1773.1,6.16288893]
[1745512955397,0.31612807,1773.4,1773.1,6.98195091]
[1745512955554,0.31612807,1773.4,1773.2,5.63949967]
[1745512956076,0.31612807,1773.4,1773.3,0.52324858]
[1745512956477,1.82442483,1773.7,1773.2,5.63928143]
[1745512956779,1.82442483,1773.7,1773.2,6.84910315]
[1745512956982,5.63840452,1773.6,1773.2,6.84910315]
[1745512957184,0.8001,1773.8,1773.3,6.39508966]
[1745512957386,5.63771481,1773.8,1773.4,5.63883047]
[1745512957552,5.63771481,1773.8,1773.4,11.27751219]
[1745512957747,5.63749882,1773.9,1773.5,7.28739663]
[1745512957952,8.63766729,1773.8,1773.5,1.64886403]
[1745512958458,8.63766729,1773.8,1773.5,1.12775122]
[1745512958654,8.63766729,1773.8,1773.4,5.63869168]
[1745512959081,5.63749882,1773.9,1773.5,5.63856181]
[1745512959082,5.63739393,1773.9,1773.5,5.63856181]
[1745512959305,5.63764109,1773.8,1773.4,5.63866535]
[1745512959804,5.63764109,1773.8,1773.4,11.27735829]
[1745512960005,5.63729635,1773.9,1773.3,0.7562]
[1745512960206,5.63853567,1773.6,1773.3,0.7562]
[1745512960569,6.44741248,1773.7,1773.3,0.7562]
[1745512960570,0.8093,1773.7,1773.3,0.7562]
[1745512960774,6.44737001,1773.7,1773.3,6.39527483]
[1745512960974,5.63825668,1773.6,1773.3,0.7562]
[1745512962029,5.63825668,1773.6,1773.3,6.39539292]
[1745512962175,5.63825668,1773.6,1773.3,7.71984286]
[1745512962370,6.44740241,1773.7,1773.3,7.71984286]
[1745512962679,12.08560046,1773.7,1773.3,7.71966864]
[1745512962875,6.44740241,1773.7,1773.3,7.71961831]
[1745512963318,6.44740241,1773.7,1773.3,13.35863232]
[1745512963469,6.44740241,1773.7,1773.3,7.71961831]
[1745512963674,5.63776666,1773.8,1773.4,6.45616616]
[1745512964089,6.45084494,1773.9,1773.5,5.63851663]
[1745512964484,5.63764157,1773.8,1773.5,5.63851663]
[1745512964686,5.63764157,1773.8,1773.4,6.45610302]
[1745512965137,0.8134,1773.9,1773.4,0.8174]
[1745512965431,5.63868353,1773.5,1773.2,0.7579]
[1745512965598,5.63868882,1773.5,1773.2,0.7579]
[1745512965804,3.8111,1773.7,1773.3,5.6391621]
[1745512966124,5.63776438,1773.8,1773.5,0.7975]
[1745512966498,3.0,1773.8,1773.5,6.49239327]
[1745512967033,5.63794506,1773.7,1773.5,0.7975]
[1745512967207,8.63765261,1773.8,1773.5,0.7975]
[1745512968619,3.0,1773.8,1773.5,6.43593796]
[1745512968824,3.0,1773.8,1773.5,7.079557]
[1745512969909,8.63762936,1773.8,1773.5,7.079557]
[1745512970508,14.27554624,1773.8,1773.5,1.44111904]
[1745512970711,5.63797122,1773.7,1773.5,1.44111904]
[1745512971730,8.63762936,1773.8,1773.5,1.44111904]
[1745512972033,5.63820492,1773.7,1773.4,0.7602]
[1745512972535,5.63820492,1773.7,1773.4,6.39908322]
[1745512972954,6.44954284,1773.8,1773.4,6.39908322]
[1745512973113,5.63795376,1773.7,1773.4,6.39908322]
[1745512974627,5.63774284,1773.8,1773.4,6.39908322]
[1745512974934,5.63803642,1773.7,1773.4,7.60289376]
[1745512975548,1.00272483,1773.5,1772.4,0.8313]
[1745512975845,5.64100963,1772.8,1772.4,0.8313]
[1745512976006,5.64112705,1772.7,1772.5,0.52031146]
[1745512976340,5.64112705,1772.7,1772.4,0.8313]
[1745512976542,5.64112705,1772.7,1772.4,1.47865059]
[1745512976835,5.64112326,1772.7,1772.4,1.47865059]
[1745512977223,5.64112326,1772.7,1772.5,0.5206039]
[1745512978231,5.64112326,1772.7,1772.4,1.47865059]
[1745512978665,5.64150505,1772.6,1772.4,1.47865059]
[1745512979162,5.64132944,1772.7,1772.4,1.47865059]
[1745512979339,11.28274321,1772.7,1772.4,1.47865059]
[1745512979639,5.64132944,1772.7,1772.4,1.47865059]
[1745512979963,5.64132944,1772.7,1772.5,0.520764]
[1745512980666,5.64132944,1772.7,1772.4,1.47865059]
[1745512981362,11.28271405,1772.7,1772.5,0.52116891]
[1745512981529,5.64132944,1772.7,1772.5,0.52116891]
[1745512981745,5.64132944,1772.7,1772.4,1.47865059]
[1745512982877,5.64143275,1772.6,1772.4,1.47865059]
[1745512983172,5.64174894,1772.5,1772.4,0.8313]
[1745512983361,5.64174894,1772.5,1772.3,5.7507]
[1745512983535,5.64174894,1772.5,1772.3,4.959]
[1745512983736,5.64174894,1772.5,1772.4,0.52136647]
[1745512984780,6.40938242,1772.6,1772.4,0.52136647]
[1745512985182,5.64174894,1772.5,1772.4,0.52136647]
[1745512985501,5.64174894,1772.5,1772.2,10.60367027]
[1745512985684,5.64174894,1772.5,1772.2,12.31102719]
[1745512985880,5.64174894,1772.5,1772.3,0.52084993]
[1745512986083,6.40938242,1772.6,1772.3,0.52084993]
[1745512986246,5.64158242,1772.6,1772.3,5.64227889]
[1745512986545,5.64158242,1772.6,1772.2,12.31081371]
[1745512986975,5.64158242,1772.6,1772.2,17.95331782]
[1745512987174,5.64125033,1772.7,1772.4,0.8087]
[1745512987470,0.8309,1772.8,1772.4,0.8087]
[1745512987776,5.64144371,1772.6,1772.4,0.8087]
[1745512988443,5.64141919,1772.7,1772.4,0.8087]
[1745512988742,5.64147619,1772.6,1772.4,0.8087]
[1745512989894,11.28278927,1772.7,1772.4,0.8087]
[1745512990082,5.64150244,1772.6,1772.4,0.8087]
[1745512990795,6.45918816,1773.0,1772.6,11.28248788]
[1745512991095,6.45783597,1773.4,1772.7,0.05640561]
[1745512991266,5.63933581,1773.3,1772.9,6.42963299]
[1745512991465,0.8189,1773.4,1772.9,6.42963299]
[1745512991696,5.63939631,1773.3,1772.9,6.42963299]
[1745512992393,5.63953755,1773.2,1772.9,6.42963299]
[1745512993899,5.63939631,1773.3,1772.9,6.42963299]
[1745512994074,9.4579916,1773.4,1773.0,5.64005963]
[1745512994271,5.63935859,1773.3,1772.9,7.63666132]
[1745512995205,5.63963394,1773.2,1772.9,1.99642833]
[1745512995503,5.63963394,1773.2,1772.9,0.7894]
[1745512995998,5.64003089,1773.1,1772.8,0.8311]
[1745512997020,5.64003089,1773.1,1772.8,6.47189056]
[1745512997525,5.63963394,1773.2,1772.9,0.52001912]
[1745512997928,5.63935561,1773.3,1772.9,6.16046448]
[1745512998225,11.27881144,1773.3,1772.9,5.64044536]
[1745512998523,5.63957328,1773.2,1772.8,12.11224057]
[1745512998820,5.63957328,1773.2,1772.9,5.64047162]
[1745512999597,5.63935561,1773.3,1772.9,5.64032551]
[1745512999598,11.27879943,1773.3,1772.9,5.64032551]
[1745512999803,5.63935561,1773.3,1772.9,5.64032551]
[1745513000099,11.27882938,1773.3,1772.9,5.64032551]
[1745513000331,5.63953508,1773.2,1772.9,5.64032551]
[1745513001342,5.63953508,1773.2,1772.8,7.68295765]
[1745513001343,5.63953508,1773.2,1772.8,7.68294724]
[1745513001503,5.63994433,1773.1,1772.9,0.52053774]
[1745513002430,5.63994433,1773.1,1772.8,6.47172318]
[1745513002625,5.63953508,1773.2,1772.9,5.64042669]
[1745513003129,5.63953508,1773.2,1773.0,0.52066279]
[1745513003631,5.63953508,1773.2,1772.9,5.64042669]
[1745513004145,0.8189,1773.4,1773.1,5.63959756]
[1745513004428,5.63875283,1773.5,1773.1,6.44559756]
[1745513004593,7.14955178,1773.5,1773.1,6.44559756]
[1745513004794,5.63892353,1773.4,1773.1,6.44559756]
[1745513005302,5.63892353,1773.4,1773.1,5.63959756]
[1745513005699,5.63892353,1773.4,1773.2,0.5213059]
[1745513006211,5.63892353,1773.4,1773.1,5.63959756]
[1745513007145,5.63892353,1773.4,1773.2,0.52121886]
[1745513007438,9.46920537,1773.6,1773.2,5.63928972]
[1745513007619,5.63866093,1773.5,1773.1,5.63965216]
[1745513007825,5.63866093,1773.5,1773.3,0.52110071]
[1745513008198,5.63888575,1773.4,1773.3,0.52110071]
[1745513008430,11.27800149,1773.4,1773.0,11.38634]
[1745513008602,5.63888575,1773.4,1773.0,17.02628778]
[1745513008804,5.63888575,1773.4,1773.1,5.63983347]
[1745513009131,5.63874937,1773.5,1773.1,11.27944696]
[1745513009430,5.63891063,1773.4,1773.2,0.5210955]
[1745513010133,5.63891063,1773.4,1773.1,5.63983636]
[1745513011034,5.63891063,1773.4,1773.0,11.38638191]
[1745513011237,5.63891063,1773.4,1773.1,0.52127641]
[1745513011538,5.63891063,1773.4,1773.1,6.16111316]
[1745513012035,5.63891063,1773.4,1773.2,0.52127641]
[1745513012438,5.63891063,1773.4,1773.0,11.38633464]
[1745513012857,5.63891063,1773.4,1773.1,5.63975487]
[1745513013218,7.40090637,1773.5,1773.1,5.63968478]
[1745513013530,5.63906452,1773.4,1773.2,0.52127134]
[1745513014136,5.63906452,1773.4,1773.0,17.02627679]
[1745513014747,5.63906452,1773.4,1773.1,5.63983]
[1745513015561,5.63906452,1773.4,1773.2,0.52150218]
[1745513015698,13.03973301,1773.5,1773.2,0.52150218]
[1745513015903,5.63893574,1773.4,1773.1,5.63969169]
[1745513016744,6.46919947,1773.6,1773.1,1.70260902]
[1745513016938,12.10762175,1773.6,1773.2,5.6393524]
[1745513017144,12.10759874,1773.6,1773.2,6.1608908]
[1745513017320,5.63858105,1773.5,1773.2,6.1608908]
[1745513017636,5.63858105,1773.5,1773.3,0.5215384]
[1745513018240,5.63858105,1773.5,1773.4,0.5215384]
[1745513018609,12.10760866,1773.6,1773.4,0.5215384]
[1745513019048,12.10760866,1773.6,1773.3,0.5215384]
[1745513019252,5.63857355,1773.5,1773.3,0.5215384]
[1745513019460,5.63857355,1773.5,1773.4,0.5215384]
[1745513021850,5.95508774,1773.5,1773.4,0.5215384]
[1745513025356,5.63857355,1773.5,1773.4,0.5215384]
[1745513026351,11.27680024,1773.6,1773.4,1.3323384]
[1745513026558,11.27680024,1773.6,1773.4,0.5215384]
[1745513026713,5.6385678,1773.5,1773.4,0.5215384]
[1745513026914,5.6385678,1773.5,1773.2,6.46880035]
[1745513027350,5.6385678,1773.5,1773.3,0.52260847]
[1745513027960,5.6385678,1773.5,1773.4,0.52260847]
[1745513028451,6.84183329,1773.5,1773.4,0.52260847]
[1745513028957,5.6385678,1773.5,1773.4,0.52260847]
[1745513037090,9.69755698,1773.5,1773.4,0.52260847]
[1745513037275,9.64129263,1773.5,1773.4,0.52260847]
[1745513037454,9.95802443,1773.5,1773.4,0.52260847]
[1745513037995,8.9552996,1773.5,1773.4,0.52260847]
[1745513038204,10.49023827,1773.5,1773.4,0.52260847]
[1745513038359,5.63917955,1773.4,1773.0,11.36058426]
[1745513038562,5.63917955,1773.4,1773.1,5.63978077]
[1745513038903,5.63917955,1773.4,1773.0,11.36054859]
[1745513039054,11.27832256,1773.4,1773.1,0.52309654]
[1745513039454,11.27832256,1773.4,1773.2,0.52309654]
[1745513039691,5.63920374,1773.3,1773.2,0.52309654]
[1745513040692,11.53086325,1773.3,1773.2,0.52309654]
[1745513040865,11.847604,1773.3,1773.2,0.52309654]
[1745513041496,11.872804,1773.3,1773.2,0.52309654]
[1745513042401,5.64069062,1772.9,1772.6,5.7548]
[1745513042707,6.42650479,1773.0,1772.6,4.953]
[1745513042904,6.42650479,1773.0,1772.7,0.52305518]
[1745513042905,5.64088465,1772.8,1772.7,0.52305518]
[1745513044795,5.64079422,1772.8,1772.7,0.52305518]
[1745513045622,5.64060533,1772.9,1772.7,0.52305518]
[1745513045974,5.64060533,1772.9,1772.8,0.52305518]
[1745513049208,3.7863,1773.0,1772.8,0.52305518]
[1745513049416,8.64027587,1773.0,1772.8,1.30845518]
[1745513049914,8.64027587,1773.0,1772.9,0.52305518]
[1745513052279,10.88890724,1773.0,1772.9,0.52305518]
[1745513052476,0.8206,1772.5,1772.1,0.7792]
[1745513052793,11.3409281,1772.4,1772.1,0.7792]
[1745513053019,6.46254455,1772.5,1772.1,0.7792]
[1745513053173,0.05626435,1772.4,1771.9,0.7587]
[1745513053378,5.64281341,1772.2,1771.9,1.89395275]
[1745513053587,5.64281341,1772.2,1771.9,0.7587]
[1745513053794,5.64309985,1772.1,1771.7,6.43228882]
[1745513053991,5.64303077,1772.1,1771.7,0.7882]
[1745513054603,5.64310171,1772.1,1771.7,0.7882]
[1745513054806,7.45976927,1772.2,1771.7,6.43234574]
[1745513055413,7.45976927,1772.2,1771.7,6.43231685]
[1745513055601,8.77000037,1772.2,1771.7,6.43231685]
[1745513055799,5.64302856,1772.1,1771.7,6.43248715]
[1745513056003,7.45976927,1772.2,1771.7,6.43248715]
[1745513056209,7.45976927,1772.2,1771.7,0.7882]
[1745513056513,5.64316332,1772.1,1771.7,6.43246828]
[1745513056724,5.64337061,1772.0,1771.7,0.7882]
[1745513056876,6.38919058,1772.1,1771.7,0.7882]
[1745513057079,12.03246584,1772.1,1771.7,0.7882]
[1745513057310,5.64346422,1772.0,1771.5,6.86477707]
[1745513057521,0.56434642,1771.9,1771.5,6.86477707]
[1745513058223,6.20803825,1771.9,1771.5,6.86477707]
[1745513058409,0.56434642,1771.9,1771.5,6.86477707]
[1745513058607,0.56434642,1771.9,1771.5,1.2199979]
[1745513058821,7.0023456,1771.9,1771.5,1.2199979]
[1745513059026,0.70023456,1771.8,1771.5,1.2199979]
[1745513059319,0.70023456,1771.8,1771.5,0.4103979]
[1745513059320,5.64443666,1771.7,1771.5,0.4103979]
[1745513059522,3.0,1771.7,1771.5,0.4103979]
[1745513060229,0.70023456,1771.8,1771.5,0.4103979]
[1745513061430,0.70023456,1771.8,1771.5,6.05529877]
[1745513061619,3.0,1771.8,1771.5,0.4103979]
[1745513062427,1.35844642,1771.9,1771.5,6.05523083]
[1745513062630,1.51530882,1772.1,1771.7,5.64408803]
[1745513062805,4.51530882,1772.1,1771.7,5.64408803]
[1745513063006,10.15836033,1772.1,1771.7,5.64408803]
[1745513063213,10.1583317,1772.1,1771.7,5.64408803]
[1745513063417,4.01583603,1772.0,1771.6,6.3960332]
[1745513065434,4.01583603,1772.0,1771.7,0.51946469]
[1745513065596,3.0,1772.0,1771.7,0.51946469]
[1745513066096,3.0,1772.0,1771.6,6.39603115]
[1745513066427,3.0,1772.0,1771.6,0.7516]
[1745513066629,8.64349797,1772.0,1771.6,0.7516]
[1745513067127,3.0,1771.8,1771.5,1.1977979]
[1745513067929,3.86437731,1771.8,1771.5,1.1977979]
[1745513068143,4.66127731,1771.8,1771.5,0.4103979]
[1745513068507,4.66127731,1771.8,1771.6,0.51988823]
[1745513069032,4.66127731,1771.8,1771.5,0.4103979]
[1745513070104,4.66127731,1771.8,1771.6,0.51981922]
[1745513070287,3.86437731,1771.8,1771.6,0.51981922]
[1745513070649,3.86437731,1771.8,1771.5,0.4103979]
[1745513070795,3.0,1771.8,1771.5,7.05798973]
[1745513071596,3.0,1771.8,1771.6,0.51986613]
[1745513072101,3.0,1771.8,1771.5,7.05798973]
[1745513072102,3.0,1771.8,1771.5,1.41312273]
[1745513072626,3.0,1771.8,1771.6,0.52008338]
[1745513073200,3.0,1771.8,1771.5,1.41312273]
[1745513074106,3.0,1771.8,1771.6,0.52016561]
[1745513074307,3.86437816,1771.8,1771.6,0.52016561]
[1745513074737,3.86437816,1771.8,1771.5,1.41312273]
[1745513075121,3.0,1771.8,1771.5,7.05797374]
[1745513075833,3.0,1771.8,1771.5,1.41312273]
[1745513076037,3.0,1771.8,1771.6,0.52044159]
[1745513076931,3.0,1771.8,1771.7,0.52044159]
[1745513077534,0.8329,1772.0,1771.7,0.52044159]
[1745513077709,5.64219061,1772.4,1771.9,6.6462713]
[1745513078034,3.0,1772.3,1772.0,0.52044159]
[1745513078254,0.3,1772.2,1772.0,0.52044159]
[1745513078546,8.64250125,1772.3,1772.0,1.32354159]
[1745513078749,6.39472803,1772.4,1772.0,1.32354159]
[1745513079247,3.0,1772.3,1772.1,0.52044159]
[1745513079826,3.0,1772.3,1772.2,0.52044159]
[1745513080219,3.0,1772.3,1772.1,0.52044159]
[1745513080438,8.64249499,1772.3,1772.1,0.52044159]
[1745513080742,10.14622256,1772.3,1772.2,0.52044159]
[1745513082647,4.50372757,1772.3,1772.2,0.52044159]
[1745513082816,10.14611317,1772.3,1772.2,0.52044159]
[1745513083648,4.82009461,1772.3,1772.2,0.52044159]
[1745513083947,3.31636704,1772.3,1772.2,0.52044159]
[1745513084246,8.95875264,1772.3,1772.2,0.52044159]
[1745513084950,8.6423856,1772.3,1772.2,0.52044159]
[1745513086026,3.0,1772.3,1772.2,0.52044159]
[1745513087353,8.6423856,1772.3,1772.2,0.52044159]
[1745513087559,10.14610223,1772.3,1772.2,0.52044159]
[1745513088563,10.46241038,1772.3,1772.2,0.52044159]
[1745513088761,10.46241038,1772.3,1771.8,6.43455098]
[1745513088762,16.10510198,1772.3,1771.8,6.43455098]
[1745513089360,5.64275229,1772.2,1771.9,0.52281877]
[1745513089960,5.64275229,1772.2,1772.0,0.52281877]
[1745513090157,10.22163774,1772.2,1772.1,0.52281877]
[1745513093114,11.09070209,1772.2,1772.1,0.52281877]
[1745513093262,11.40708385,1772.2,1772.1,0.52281877]
[1745513093462,11.3508195,1772.2,1772.1,0.52281877]
[1745513094765,5.64351926,1772.0,1771.6,0.8028]
[1745513095500,5.64351926,1772.0,1771.7,0.52312882]
[1745513095998,5.64365934,1771.9,1771.8,0.52312882]
[1745513096187,8.64365934,1771.9,1771.8,0.52312882]
[1745513097403,11.00742579,1772.2,1771.8,6.97719787]
[1745513097965,11.00742579,1772.2,1771.9,0.52312882]
[1745513098409,11.00742579,1772.2,1772.0,0.52312882]
[1745513099000,5.36458545,1772.2,1772.0,0.52312882]
[1745513099208,3.0,1772.2,1772.1,0.52312882]
[1745513099515,3.0,1772.4,1772.1,1.31912882]